[Event "Menorca Open-A 2022"]
[Site "Menorca"]
[Date "2022.04.21"]
[Round "3.5"]
[White "Gukesh D"]
[Black "Batsiashvili, Nino"]
[Result "1-0"]
[ECO "D38"]
[WhiteElo "2614"]
[BlackElo "2491"]
[Annotator "TA"]
[PlyCount "89"]
[EventDate "2022.04.20"]
[EventType "swiss"]
[EventCountry "ESP"]
[SourceTitle "playchess.com"]
[Source "ChessBase"]
[SourceQuality "1"]
[TimeControl "5400+30"]

{[%evp 12,89,0,0,8,13,14,0,0,0,45,29,62,39,64,51,112,60,70,53,52,50,100,40,81,74,77,75,175,60,71,0,120,121,107,117,108,118,107,100,101,101,89,86,109,31,68,52,146,159,149,134,294,283,277,294,298,289,427,426,412,405,364,357,1359,1359,1257,789,1640,1460,1268,405,983,677,29987,29988,29988,29989,29991,29989]} 1. d4 {[%emt 0:01:09]} Nf6 {[%emt 0:00:05]} 2. c4 {[%emt 0:00:30]} e6 {[%emt 0:00:04]} 3. Nf3 {[%emt 0:01:04]} d5 {[%emt 0:00:09]} 4. Nc3 {[%emt 0:01:02]} Bb4 {[%emt 0:00:56]} 5. Qa4+ {[%emt 0:01:47]} Nc6 {[%emt 0:00:02]} 6. a3 {[%emt 0:02:52]} Bxc3+ {[%emt 0:03:09]} 7. bxc3 {[%emt 0:00:02]} O-O {[%emt 0:02:48] D38: Queen's Gambit Declined: Ragozin Defence (4 Nf3 Bb4).} 8. Bg5 {[%emt 0:00:16][%cal Bc1g5,Bg5h4,Bh4g3,Bg3f4][%mdl 32]} Bd7 {[%emt 0:01:17][%cal Oc6d4]} 9. Qc2 {[%emt 0:00:55]} h6 {[%emt 0:02:01] The position is equal.} 10. Bh4 {[%emt 0:00:06]} g5 {[%emt 0:06:44]} 11. Bg3 {[%emt 0:01:08] [#]} Na5 $146 {[%emt 0:05:26]} ({Predecessor:} 11... Nh7 12. e3 Ne7 13. Bd3 f5 14. Ne5 Nf6 15. h4 g4 16. h5 Qe8 17. Bh4 Qxh5 {1-0 (32) Petrov,N (2562)-Tarasenkov,V (1582) Novorossiysk 2021}) 12. h4 {[%emt 0:09:23]} g4 {[%emt 0:02:05]} (12... Nxc4 $2 13. hxg5 Ne4 14. Rxh6 $18) 13. Ne5 {[%emt 0:02:05]} Nxc4 {[%emt 0:00:15]} (13... Nh5 $14) 14. Nxc4 {[%emt 0:01:10]} (14. Bf4 $1 $16) 14... dxc4 $14 {[%emt 0:00:01]} 15. Bf4 {[%emt 0:01:04]} Re8 {[%emt 0:17:49]} 16. e4 {[%emt 0:13:50] Strongly threatening e5.} c5 {[%emt 0:01:34]} 17. dxc5 {[%emt 0:03:46]} (17. Be5 $1 $16) 17... e5 {[%emt 0:03:46]} 18. Bxh6 {[%emt 0:03:23]} Qa5 {[%emt 0:00:02]} 19. Bxc4 {[%emt 0:08:06] Qd2 is the strong threat.} Ba4 {[%emt 0:16:35]} (19... Qxc5 $16 {was called for.} 20. Bd3 g3) 20. Qc1 {[%emt 0:11:53]} (20. Qa2 $1 $18) 20... Nxe4 {[%emt 0:00:07]} 21. f3 {[%emt 0:06:11]} ({White should play} 21. O-O $16 Qxc3 22. Qxc3 Nxc3 23. f3) 21... Qxc3+ {[%emt 0:04:28]} (21... Rad8 $11 22. O-O (22. fxe4 $2 Rd1+ 23. Qxd1 Bxd1 $19) 22... Qxc5+ 23. Qe3 Qxc4 24. fxe4 Rd6) 22. Qxc3 $16 {[%emt 0:00:06] The board is on fire.} Nxc3 {[%emt 0:00:04]} 23. fxg4 {[%emt 0:00:50] Black must now prevent Rc1.} b5 {[%emt 0:02:46]} 24. cxb6 {[%emt 0:04:09]} Rac8 {[%emt 0:00:43]} 25. Bf1 {[%emt 0:00:11]} axb6 {[%emt 0:00:20]} 26. Rh3 {[%emt 0:03:15]} Re6 {[%emt 0:05:10]} 27. Bd2 {[%emt 0:01:33] A strong pair of Bishops.} Ne4 {[%emt 0:06:23]} 28. Be3 {[%emt 0:00:59]} (28. Bb4 $16) 28... Rc3 {[%emt 0:01:48]} 29. Bg1 {[%emt 0:00:44]} Rd6 {[%emt 0:03:59]} ({Black should try} 29... Rc2 $14) 30. Rxc3 {[%emt 0:00:20]} Nxc3 {[%emt 0:00:02]} 31. Rc1 {[%emt 0:05:20]} Nb5 {[%emt 0:00:58] This costs Black the game.} (31... Nd5 $16 32. g3 f6) 32. Rc4 $18 {[%emt 0:01:09]} Rd1+ {[%emt 0:01:56]} 33. Kf2 {[%emt 0:00:01]} Rd4 {[%emt 0:03:21]} 34. Rxd4 {[%emt 0:04:39]} exd4 {[%emt 0:01:58][%mdl 4096] Endgame KBB-KBN} (34... Nxd4 {keeps fighting.} 35. g5 Kg7) 35. Kg3 {[%emt 0:00:05]} Nxa3 {[%emt 0:00:10]} 36. Bxd4 {[%emt 0:00:02]} b5 {[%emt 0:00:36]} 37. h5 {[%emt 0:08:11]} b4 $2 {[%emt 0:05:23]} (37... Bc2 38. Kf4 Nc4) 38. Bc5 {[%emt 0:02:59]} Nc2 {[%emt 0:00:06]} 39. Bc4 {[%emt 0:00:07] aiming for g5.} b3 {[%emt 0:01:14] [#]} 40. g5 $1 {[%emt 0:01:02][%cal Bg4g5,Bg5g6][%mdl 32] Threatens to win with g6.} b2 {[%emt 0:00:16]} 41. Ba2 {[%emt 0:01:32]} (41. g6 $142 Be8 42. Ba2) 41... Bb3 {[%emt 0:01:41]} (41... Bd7 $142 42. Kf4 Ne1) 42. Bb1 {[%emt 0:00:01] Intending h6 and mate.} Bd5 {[%emt 0:00:45]} 43. Bxc2 {[%emt 0:00:39] White mates.} Ba2 {[%emt 0:00:04] [#]} 44. h6 $1 {[%emt 0:00:03]} f5 {[%emt 0:00:38]} 45. g6 {[%emt 0:00:13] Weighted Error Value: White=0.29 (precise) /Black=0.59} 1-0

[Event "Menorca Open-A 2022"]
[Site "Menorca"]
[Date "2022.04.21"]
[Round "3.6"]
[White "Grigorian, Spartak"]
[Black "Adhiban, B.."]
[Result "0-1"]
[ECO "E41"]
[WhiteElo "2477"]
[BlackElo "2648"]
[Annotator "TA"]
[PlyCount "64"]
[EventDate "2022.04.20"]
[EventType "swiss"]
[EventCountry "ESP"]
[SourceTitle "playchess.com"]
[Source "ChessBase"]
[SourceQuality "1"]
[TimeControl "5400+30"]

{[%evp 19,64,8,4,-9,5,-28,-29,-30,-20,-54,-12,-52,0,0,0,0,0,0,0,8,19,0,99,-30,-23,-81,0,-17,-10,-14,-14,-358,-377,-369,-378,-371,-364,-350,-294,-296,-295,-284,-285,-268,-284,-677,-660]} 1. d4 {[%emt 0:00:08] Edouard,Romain} Nf6 {[%emt 0:02:01]} 2. c4 {[%emt 0:00:42]} e6 {[%emt 0:05:59]} 3. Nc3 {[%emt 0:01:08]} Bb4 {[%emt 0:01:06]} 4. e3 {[%emt 0:01:23]} c5 {[%emt 0:05:24]} 5. Nf3 {[%emt 0:00:22]} Nc6 {[%emt 0:07:01]} 6. Bd3 {[%emt 0:00:07]} Bxc3+ {[%emt 0:01:54]} 7. bxc3 {[%emt 0:00:05]} d6 {[%emt 0:00:09]} 8. O-O {[%emt 0:01:58]} e5 {[%emt 0:11:45]} 9. Nd2 {[%emt 1:29:07]} O-O {[%emt 0:06:11]} 10. Rb1 {[%emt 0:00:00] was the old line (10.d5).} b6 {[%emt 0:07:13]} 11. Qc2 {[%emt 0:00:00] [#] E41: Nimzo-Indian: Rubinstein: 4...c5 5 Bd3, including Hübner Variation.} Bb7 $146 {[%emt 0:01:23][%cal Re5d4]} ({Predecessor:} 11... exd4 12. exd4 h6 13. Ne4 Bb7 14. Rd1 cxd4 15. Ba3 Nxe4 16. Bxe4 Na5 17. Bxb7 Nxb7 18. cxd4 Qc7 {½-½ (55) Edouard,R (2652)-Short,N (2698) Istanbul 2012 CBM 151 [Edouard,Romain]}) 12. Ne4 {[%emt 0:00:00]} Nxe4 {[%emt 0:00:57]} 13. Bxe4 {[%emt 0:00:00] Black has an edge.} Qh4 {[%emt 0:00:21][%cal Rc6d4]} 14. g3 {[%emt 0:00:00]} Qh5 {[%emt 0:11:03]} 15. f4 {[%emt 0:00:00]} exd4 {[%emt 0:02:02]} (15... Na5 $15) 16. Qg2 $1 $11 {[%emt 0:00:00]} Rac8 {[%emt 0:01:57]} 17. cxd4 {[%emt 0:00:00]} cxd4 {[%emt 0:07:36]} 18. Rb5 {[%emt 0:00:00] Prevents Qc5.} f5 {[%emt 0:00:20]} 19. exd4 {[%emt 0:00:00]} Kh8 {[%emt 0:06:05]} 20. Bb2 {[%emt 0:00:00][%cal Og3g4]} Qg6 {[%emt 0:01:38] [#]} (20... Qe8 $1 $11 21. Rxf5 Rxf5 22. Bxf5 Nxd4 23. Qxb7 Nxf5) 21. Bf3 {[%emt 0:00:00]} ({Better is} 21. Rxf5 $1 $16 Rxf5 22. g4) 21... Qe8 {[%emt 0:02:09]} 22. g4 {[%emt 0:00:00]} (22. Rb3 $11) 22... Qe3+ {[%emt 0:12:11]} ({Black should try} 22... fxg4 $17 23. Be4 (23. Bxg4 Na5 $17) 23... h6) 23. Kh1 {[%emt 0:00:00]} fxg4 {[%emt 0:00:13]} 24. Bxg4 {[%emt 0:00:00] A strong pair of Bishops.} Rce8 {[%emt 0:02:48][%cal Bc8e8,Be8e2,Be2b2][%mdl 32] Threatens to win with ...Na5.} 25. Bd7 $2 {[%emt 0:00:00][%mdl 8192] [#] This move loses the game for White.} ({Reject} 25. Bf3 Qxf4 26. Rb3 (26. d5 Nd4 $17) 26... Ne7 $15) (25. Rg1 $11 {and White has nothing to worry.} Ne5 26. Qxb7) 25... Qxf4 $1 $19 {[%emt 0:00:18][%mdl 512]} 26. Rg1 {[%emt 0:00:00][%csl Gg1][%cal Rg2g7]} Nxd4 {[%emt 0:01:13]} 27. Qxb7 {[%emt 0:00:00]} Re2 {[%emt 0:00:11][%csl Gf4][%cal Re2h2] The board is on fire.} 28. Rh5 {[%emt 0:01:26][%cal Od7f5] White threatens Bf5! and mate.} Rxb2 {[%emt 0:00:06]} 29. Bc6 {[%emt 0:06:15][%csl Gg1][%cal Rb7g7]} Qf6 {[%emt 0:01:17]} 30. Be4 {[%emt 0:00:18]} h6 {[%emt 0:00:08]} 31. Rh3 {[%emt 0:01:19]} Rf2 {[%emt 0:01:52] ...Ne2 is the strong threat.} 32. Rhg3 $2 {[%emt 0:00:03]} (32. Bd3) 32... Ne2 {[%emt 0:00:42] Weighted Error Value: White=0.65/Black=0.16 (very precise)} 0-1

[Event "Menorca Open-A 2022"]
[Site "Menorca"]
[Date "2022.04.21"]
[Round "3.7"]
[White "Martirosyan, Haik M."]
[Black "De La Riva Aguado, Oscar"]
[Result "1-0"]
[ECO "A80"]
[WhiteElo "2633"]
[BlackElo "2443"]
[Annotator "TA"]
[PlyCount "79"]
[EventDate "2022.04.20"]
[EventType "swiss"]
[EventCountry "ESP"]
[SourceTitle "playchess.com"]
[Source "ChessBase"]
[SourceQuality "1"]
[TimeControl "5400+30"]

{[%evp 9,79,52,44,56,82,99,90,89,82,79,88,64,64,43,18,14,21,27,2,-21,124,118,120,112,137,124,138,137,132,134,154,133,141,162,162,155,429,407,376,373,379,366,351,196,175,113,99,73,142,135,131,149,360,348,360,363,363,360,352,261,266,266,267,260,263,267,264,249,251,242,224,206]} 1. d4 {[%emt 0:00:07]} f5 {[%emt 0:00:23]} 2. Bg5 {[%emt 0:00:26]} g6 {[%emt 0:02:49]} 3. e3 {[%emt 0:01:46]} Bg7 {[%emt 0:01:31]} 4. Nc3 {[%emt 0:01:11]} d6 {[%emt 0:04:35]} 5. Bc4 {[%emt 0:02:21]} Nf6 {[%emt 0:07:48]} 6. Nge2 {[%emt 0:02:46] A80: Dutch Defence: Unusual White second moves.} e6 {[%emt 0:22:59] [#]} 7. Nf4 $146 {[%emt 0:06:53]} ({Predecessor:} 7. f3 h6 8. Bh4 d5 9. Bd3 O-O 10. O-O Nc6 11. Bf2 a6 12. Nf4 Qe8 13. Be2 {½-½ (20) Aranha Filho,A (2270)-Carneiro,V (2259) Mogi das Cruzes 2014}) 7... d5 {[%emt 0:15:11]} 8. Be2 {[%emt 0:01:16] 0x0.001c68f4b568dp-1022s more active pieces. White is better.} O-O {[%emt 0:17:12]} 9. h4 $1 {[%emt 0:03:12] aiming for h5.} h6 {[%emt 0:00:14]} 10. Bxf6 {[%emt 0:01:45]} (10. Nxg6 {seems wilder.} hxg5 11. hxg5 Ne4 12. Nxf8 Nxc3 13. bxc3 Kxf8 14. f4) 10... Rxf6 {[%emt 0:00:15]} 11. g4 {[%emt 0:02:42]} fxg4 {[%emt 0:02:51]} 12. Bxg4 {[%emt 0:02:29]} c5 {[%emt 0:00:33]} 13. dxc5 {[%emt 0:05:27]} Nc6 {[%emt 0:01:46][%cal Bb8c6,Bc6d4,Bd4f3][%mdl 32]} 14. Nd3 {[%emt 0:06:14]} e5 {[%emt 0:06:02]} (14... Rf7 $11) 15. Bxc8 {[%emt 0:02:44]} Rxc8 {[%emt 0:00:05]} 16. e4 {[%emt 0:00:12]} Nd4 {[%emt 0:08:08]} 17. Nxd5 {[%emt 0:02:11]} (17. exd5 Rf3 18. Kf1 e4 $15) (17. Nxe5 dxe4 18. Ne2 Qa5+ 19. Kf1 Nf3 20. Qd5+ Kh7 21. Nxf3 exf3 $17) 17... Nf3+ {[%emt 0:00:20]} 18. Kf1 {[%emt 0:02:30]} Rf7 {[%emt 0:00:06]} 19. Rh3 {[%emt 0:01:33]} Nxh4 {[%emt 0:02:21]} 20. Qg4 $36 {[%emt 0:00:33][%mdl 2048] White has strong initiative.} g5 {[%emt 0:00:07] [#]} 21. Rxh4 $1 {[%emt 0:06:38][%mdl 512]} gxh4 {[%emt 0:00:06]} 22. Nxe5 $1 {[%emt 0:00:10] Pair of Knights!} Rxc5 $2 {[%emt 0:02:41]} (22... Rf8 $16) 23. Nxf7 $18 {[%emt 0:01:27]} Kxf7 {[%emt 0:00:05]} 24. Rd1 {[%emt 0:03:14] Strongly threatening Nf4.} Qg5 {[%emt 0:02:44]} 25. Qd7+ {[%emt 0:00:26]} Kg8 {[%emt 0:00:20]} 26. Ne7+ {[%emt 0:00:56] Dancing on a razor blade.} (26. Qxb7 h3 27. Qb3 Qg2+ 28. Ke2 Qxe4+ 29. Ne3+ Kh7 $11) (26. c3 $142) 26... Kh7 {[%emt 0:00:36][%cal Oh4h3]} 27. Qe6 {[%emt 0:04:15]} ({Better is} 27. Rd5 $18 Rxd5 28. Nxd5) 27... Bxb2 $16 {[%emt 0:01:29]} 28. Nf5 {[%emt 0:02:06]} (28. Qf7+ Qg7 29. Qxg7+ Kxg7 $14) 28... Rc7 {[%emt 0:00:15] Prevents Qf7+.} (28... h3 $142 29. Ng3 (29. Rd7+ Kh8 $14) 29... h2) 29. Rd7+ {[%emt 0:05:33]} Rxd7 {[%emt 0:00:05]} 30. Qxd7+ {[%emt 0:00:01]} Kh8 $2 {[%emt 0:00:29]} (30... Kg6 $16) 31. Qc8+ $1 $18 {[%emt 0:00:55]} (31. Qxb7 Qc1+ 32. Kg2 h3+ 33. Kh2 (33. Kxh3 Qf1+ 34. Kh4 Qxf2+ 35. Ng3 Be5 $14) 33... Be5+ 34. Ng3 Bxg3+ 35. Kxg3 Qg5+ 36. Kxh3 Qh5+ 37. Kg3 Qg6+ 38. Kf3 Qh5+ 39. Ke3 Qc5+ 40. Kd3 Qxf2 $16) 31... Qg8 {[%emt 0:00:51]} 32. Qxg8+ {[%emt 0:00:55]} ({Less strong is} 32. Qxb7 Qc4+ 33. Kg2 h3+ 34. Kf3 (34. Kxh3 Qf1+ 35. Kh4 Qxf2+ 36. Ng3 Be5 $14) 34... Qxc2 $18) 32... Kxg8 {[%emt 0:00:06]} 33. Nxh4 {[%emt 0:02:22][%mdl 4096] Endgame KB-KN} Kf7 {[%emt 0:01:13]} 34. Ke2 {[%emt 0:00:19]} Bc1 {[%emt 0:00:32]} 35. Ng2 {[%emt 0:00:57]} h5 {[%emt 0:00:09]} 36. Kf3 {[%emt 0:00:28]} Kf6 {[%emt 0:00:18]} 37. Nf4 {[%emt 0:00:07]} Kg5 {[%emt 0:01:02] [#]} 38. Ne6+ {[%emt 0:00:12]} Kf6 {[%emt 0:00:10]} 39. Nc5 {[%emt 0:00:05]} b6 {[%emt 0:00:56] [#]} 40. Nd3 $1 {[%emt 0:00:05] Weighted Error Value: White=0.12 (very precise) /Black=0.33} 1-0

[Event "Menorca Open-A 2022"]
[Site "Menorca"]
[Date "2022.04.21"]
[Round "3.8"]
[White "Garcia Ramos, Daniel"]
[Black "Sadhwani, Raunak"]
[Result "0-1"]
[ECO "A28"]
[WhiteElo "2433"]
[BlackElo "2616"]
[Annotator "TA"]
[PlyCount "130"]
[EventDate "2022.04.20"]
[EventType "swiss"]
[EventCountry "ESP"]
[SourceTitle "playchess.com"]
[Source "ChessBase"]
[SourceQuality "1"]
[TimeControl "5400+30"]

{[%evp 9,130,10,6,-17,-10,-16,-12,-8,16,-8,0,0,0,-8,21,-14,-10,-10,-12,-34,-28,-26,-26,-20,-31,-21,-15,-15,-15,-15,-15,-18,-20,-15,-22,-36,-29,-22,0,0,0,0,0,0,0,0,0,-15,0,0,0,0,0,0,0,0,0,-15,0,0,0,0,0,0,0,0,-1,-1,0,0,18,18,18,18,18,18,18,18,14,0,6,0,0,0,0,0,0,-12,-9,-8,-10,-24,-24,-24,-24,-24,-24,-28,-14,-14,-14,-14,-14,-14,-18,-18,-18,-18,-18,-18,-18,-430,-419,-400,-335,-29973,-29975,-29975,-29976,-29976,-29976,-29975,-29976]} 1. c4 {[%emt 0:00:02]} e5 {[%emt 0:00:56]} 2. Nc3 {[%emt 0:00:12]} Nf6 {[%emt 0:00:05]} 3. Nf3 {[%emt 0:00:10]} Nc6 {[%emt 0:00:04]} 4. e4 {[%emt 0:00:10]} Bb4 {[%emt 0:00:32]} 5. d3 {[%emt 0:00:22]} d6 {[%emt 0:00:21]} 6. h3 {[%emt 0:00:14] A28: English Opening: Four Knights Variation.} Bc5 {[%emt 0:05:19]} 7. Be2 {[%emt 0:00:25]} a6 {[%emt 0:02:01]} 8. O-O {[%emt 0:00:09] [#] The position is equal.} Nd4 $146 {[%emt 0:07:20]} ({Predecessor:} 8... O-O 9. Be3 Nd4 10. Qd2 h6 11. Bd1 Nh7 12. Bxd4 exd4 13. Ne2 Qf6 14. Ng3 b5 {0-1 (59) Ding,L (2799)-Esipenko,A (2714) chess24.com INT 2022}) 9. Be3 {[%emt 0:00:37]} c6 {[%emt 0:04:57]} 10. Qd2 {[%emt 0:01:26]} b5 {[%emt 0:00:38]} 11. Bd1 {[%emt 0:09:16]} Qb6 {[%emt 0:10:06]} (11... O-O {with more complications.} 12. Rc1 Nxf3+ 13. Bxf3 Bxe3 14. Qxe3 b4) 12. cxb5 {[%emt 0:04:05]} (12. Bg5 {is interesting.} Qd8 13. Nxd4 Bxd4 14. Ne2) 12... Nxf3+ {[%emt 0:04:07]} 13. Bxf3 {[%emt 0:00:13]} Bxe3 {[%emt 0:00:05]} 14. Qxe3 {[%emt 0:11:05]} Qxe3 {[%emt 1:00:59]} 15. fxe3 {[%emt 0:00:02]} axb5 {[%emt 0:00:06]} 16. Rfc1 {[%emt 0:03:45]} Ke7 {[%emt 0:02:12]} 17. a4 {[%emt 0:03:11]} b4 {[%emt 0:00:06]} 18. Nb1 {[%emt 0:01:13]} Ba6 {[%emt 0:05:52]} 19. d4 {[%emt 0:10:43]} Rhc8 {[%emt 0:11:56]} 20. Nd2 {[%emt 0:02:33]} c5 {[%emt 0:05:09]} 21. dxe5 {[%emt 0:06:53]} dxe5 {[%emt 0:00:03] Hoping for ...c4.} 22. Nc4 {[%emt 0:00:43]} Bxc4 {[%emt 0:05:28]} 23. Rxc4 {[%emt 0:01:05]} Nd7 {[%emt 0:06:43] White must now prevent ...Nb6.} 24. Bg4 {[%emt 0:15:48]} Nb6 {[%emt 0:00:44]} 25. Rcc1 {[%emt 0:00:14]} Rc7 {[%emt 0:00:47]} 26. a5 {[%emt 0:08:53]} Nc8 {[%emt 0:00:21]} 27. Bxc8 {[%emt 0:01:55]} Rcxc8 $11 {[%emt 0:00:58][%mdl 4096] Endgame KRR-KRR} 28. a6 {[%emt 0:02:27]} Ra7 {[%emt 0:13:20]} 29. Ra5 {[%emt 0:07:23]} Kd6 {[%emt 0:00:32]} 30. Kf2 {[%emt 0:03:32]} Rc6 {[%emt 0:02:11]} 31. Rca1 $1 {[%emt 0:00:19]} c4 {[%emt 0:04:13]} 32. Ke2 {[%emt 0:02:17]} f6 {[%emt 0:01:05]} 33. Kd2 {[%emt 0:01:47]} Rc5 {[%emt 0:02:31]} 34. R5a4 {[%emt 0:00:19]} Rb5 {[%emt 0:00:08]} 35. Kc2 {[%emt 0:00:08]} h5 {[%emt 0:00:41]} 36. Rd1+ {[%emt 0:01:33]} Kc6 {[%emt 0:00:53]} 37. Rd8 {[%emt 0:00:47]} Rb6 {[%emt 0:00:43] Threatening ...Kb5.} 38. Ra5 {[%emt 0:00:23]} Kc7 {[%emt 0:01:26]} 39. Rad5 {[%emt 0:03:41] R5d7+ is the strong threat.} Rc6 {[%emt 0:00:20]} 40. R5d7+ {[%emt 0:00:30]} Kb6 {[%emt 0:00:27]} 41. Rb8+ {[%emt 0:00:26]} Kxa6 {[%emt 0:00:04]} 42. Rxa7+ {[%emt 0:00:32]} Kxa7 {[%emt 0:05:25]} 43. Rxb4 {[%emt 0:02:39] KR-KR} Ka6 {[%emt 0:00:00]} 44. Kc3 {[%emt 0:00:14]} Rd6 $1 {[%emt 0:00:00]} 45. Rxc4 {[%emt 0:00:15]} Rd1 {[%emt 0:00:00]} 46. Kb3 {[%emt 0:01:03]} Re1 {[%emt 0:00:00]} 47. Rc7 {[%emt 0:02:03]} Rxe3+ {[%emt 0:00:00]} 48. Ka4 {[%emt 0:00:49]} Rg3 {[%emt 0:00:00]} 49. Rc2 {[%emt 0:00:24]} Kb6 {[%emt 0:00:00]} 50. Re2 {[%emt 0:00:38] Inhibits Re3.} h4 {[%emt 0:00:00]} 51. Kb4 {[%emt 0:00:19]} Rd3 {[%emt 0:00:00]} 52. Kc4 {[%emt 0:00:42]} Rd1 {[%emt 0:00:00]} 53. b3 {[%emt 0:00:30]} Rd4+ {[%emt 0:00:00]} 54. Kc3 {[%emt 0:00:01]} Kc5 {[%emt 0:00:00]} 55. Re1 {[%emt 0:01:03]} Kb5 {[%emt 0:00:14]} 56. Re3 {[%emt 0:00:29]} Kc6 {[%emt 0:00:30]} 57. Re1 {[%emt 0:00:13]} Kc5 {[%emt 0:00:19]} 58. Re3 {[%emt 0:00:31]} Rd1 {[%emt 0:00:34] White should prevent ...Rc1+.} 59. g3 {[%emt 0:00:36]} Rc1+ {[%emt 0:00:23]} 60. Kd2 $2 {[%emt 0:00:24][%mdl 8192] Loses the game.} (60. Kd3 $1 $11 {and White has nothing to worry.}) 60... Rg1 $1 $19 {[%emt 0:02:09]} 61. gxh4 {[%emt 0:00:05]} Kd4 {[%emt 0:00:01] ( -> ...Rg2+)} 62. b4 $2 {[%emt 0:01:15] [#]} (62. Rd3+ $19 Kxe4 63. b4) 62... Rg2+ $1 {[%emt 0:00:18] Black mates.} 63. Re2 {[%emt 0:00:04] [#]} Rxe2+ $1 {[%emt 0:00:12]} 64. Kxe2 {[%emt 0:00:06]} Kxe4 {[%emt 0:00:02]} 65. b5 {[%emt 0:00:19]} Kd5 {[%emt 0:00:04] Weighted Error Value: White=0.28 (precise) /Black=0.03 (flawless)} 0-1

[Event "Menorca Open-A 2022"]
[Site "Menorca"]
[Date "2022.04.21"]
[Round "3.9"]
[White "Sethuraman, S.P."]
[Black "Minzer, Claudio Javier"]
[Result "1-0"]
[ECO "B76"]
[WhiteElo "2619"]
[BlackElo "2427"]
[Annotator "TA"]
[PlyCount "101"]
[EventDate "2022.04.20"]
[EventType "swiss"]
[EventCountry "ESP"]
[SourceTitle "playchess.com"]
[Source "ChessBase"]
[SourceQuality "1"]
[TimeControl "5400+30"]

{[%evp 29,101,33,47,37,35,31,31,31,33,34,31,31,35,35,60,55,58,39,60,60,52,37,45,29,41,25,40,40,50,31,39,39,54,39,47,10,11,26,13,0,12,0,0,0,0,0,0,0,0,0,0,0,0,0,0,0,31,28,128,122,220,218,217,17,15,18,219,186,379,379,364,347,316,296]} 1. e4 {[%emt 0:00:16]} c5 {[%emt 0:00:40]} 2. Nf3 {[%emt 0:00:06]} d6 {[%emt 0:00:11]} 3. d4 {[%emt 0:00:30]} cxd4 {[%emt 0:00:08]} 4. Nxd4 {[%emt 0:00:05]} Nf6 {[%emt 0:00:11]} 5. Nc3 {[%emt 0:00:07]} g6 {[%emt 0:00:34]} 6. Be3 {[%emt 0:01:32]} Bg7 {[%emt 0:01:17]} 7. f3 {[%emt 0:00:10]} O-O {[%emt 0:00:29]} 8. Qd2 {[%emt 0:00:06]} Nc6 {[%emt 0:00:06]} 9. O-O-O {[%emt 0:01:57]} d5 {[%emt 0:00:27]} 10. exd5 {[%emt 0:01:29]} Nxd5 {[%emt 0:00:21]} 11. Nxc6 {[%emt 0:00:06]} bxc6 {[%emt 0:00:06]} 12. Bd4 {[%emt 0:00:04]} Nxc3 {[%emt 0:02:49]} 13. Qxc3 {[%emt 0:01:36]} Bh6+ {[%emt 0:00:52]} 14. Be3 {[%emt 0:00:06]} Bxe3+ {[%emt 0:00:07]} 15. Qxe3 {[%emt 0:00:05]} Qb6 {[%emt 0:00:11]} 16. Qc3 $1 {[%emt 0:00:32][%mdl 4] is more profitable than 16.Qxe7 at the moment. B76: Sicilian Dragon: Yugoslav Attack, 9 g4 and 9 0-0-0.} Be6 {[%emt 0:04:15]} 17. h4 {[%emt 0:09:57]} Rfd8 {[%emt 0:06:21]} (17... Bxa2 $2 18. b3 $18) 18. Re1 $5 {[%emt 0:00:10][%cal Bd1e1,Be1e3,Be3c3][%mdl 4] White is slightly better. Leaves trodden paths.} Qd4 {[%emt 0:06:26]} 19. Qxd4 {[%emt 0:00:16]} Rxd4 {[%emt 0:00:12]} 20. Re3 {[%emt 0:00:20]} Rad8 {[%emt 0:05:33][%csl Gd8][%cal Rd4d1] [#]} 21. Be2 {[%emt 0:00:05] [#] Inhibits Rd1+.} h5 $146 {[%emt 0:06:48]} ({Predecessor:} 21... Ra4 22. a3 Kg7 23. Rc3 Rd6 24. g3 Ra5 25. f4 Kf6 26. Re1 c5 {1-0 (50) Van Tricht,M (2311)-Clarke,J (2228) ICCF email 2018}) 22. g3 {[%emt 0:00:17]} Kf8 {[%emt 0:06:01]} 23. Re1 {[%emt 0:01:19]} R8d7 {[%emt 0:01:05]} (23... Bxa2 $2 24. b3 $18) 24. Rc3 {[%emt 0:02:54]} R4d6 {[%emt 0:03:42]} (24... Bxa2 $2 25. b3 $18) 25. f4 {[%emt 0:02:52]} Ke8 {[%emt 0:05:59]} (25... Bxa2 $2 26. b3 $18) 26. b3 {[%emt 0:36:50]} Kd8 {[%emt 0:02:58]} 27. a4 {[%emt 0:02:13]} Rb7 {[%emt 0:05:30]} 28. Kb2 {[%emt 0:01:25]} Kd7 {[%emt 0:03:30]} 29. Ka3 {[%emt 0:00:47]} Rd4 {[%emt 0:01:54]} 30. Re3 {[%emt 0:01:56][%cal Oe2c4]} Kd6 {[%emt 0:01:50]} 31. Ba6 {[%emt 0:06:24]} Rc7 {[%emt 0:00:48]} 32. Bd3 {[%emt 0:00:32]} Bf5 $1 {[%emt 0:02:34]} 33. Bc4 {[%emt 0:00:38] Threatens to win with c3.} e6 {[%emt 0:01:45]} 34. Kb2 {[%emt 0:03:50]} Ke7 {[%emt 0:01:56]} 35. Be2 {[%emt 0:01:42]} c5 {[%emt 0:01:17]} 36. Bf3 {[%emt 0:01:00]} Kd6 {[%emt 0:03:34]} 37. Kc3 {[%emt 0:00:35]} Ke7 {[%emt 0:01:48]} 38. Re5 {[%emt 0:02:35]} Kd6 {[%emt 0:00:57]} 39. a5 {[%emt 0:01:55]} f6 {[%emt 0:02:29]} 40. R5e3 {[%emt 0:00:04]} Re7 {[%emt 0:00:11]} 41. Be2 {[%emt 0:04:55]} e5 {[%emt 0:01:38]} 42. Bc4 {[%emt 0:00:10]} Bg4 {[%emt 0:02:08]} 43. Kb2 {[%emt 0:01:34]} Bf5 {[%emt 0:01:27] [#]} (43... Rd2 $1 $11 {keeps the balance.}) 44. Kc1 $1 $16 {[%emt 0:01:52]} Kc6 {[%emt 0:12:21]} (44... e4 $16 {might work better.}) 45. fxe5 $18 {[%emt 0:03:08]} fxe5 {[%emt 0:00:03]} 46. Rxe5 {[%emt 0:00:05]} Rxe5 {[%emt 0:00:05]} 47. Rxe5 {[%emt 0:00:04] c3 is the strong threat. KRB-KRB} Kd6 $2 {[%emt 0:00:48] This move loses the game for Black.} (47... Rg4 $1 $11) 48. Re3 {[%emt 0:00:31] Hoping for c3.} Kd7 $2 {[%emt 0:00:48]} (48... Kc6 {was called for.} 49. Re7 Rd7 50. Rxd7 Bxd7) 49. c3 {[%emt 0:00:26]} Rd6 {[%emt 0:00:09]} 50. Bb5+ {[%emt 0:00:53]} Kc8 {[%emt 0:00:49]} 51. Re5 {[%emt 0:00:46] Weighted Error Value: White=0.04 (flawless) /Black=0.25 (precise)} 1-0